[Event "Reykjavik Open 2022"]
[Site "Reykjavik"]
[Date "2022.04.06"]
[Round "1.1"]
[White "Idani, Pouya"]
[Black "Chapman, Terry P D"]
[Result "1-0"]
[ECO "B12"]
[WhiteElo "2621"]
[BlackElo "2240"]
[Annotator "RC"]
[PlyCount "55"]
[EventDate "2022.04.06"]
[EventCountry "ISL"]
[SourceTitle "playchess.com"]
[Source "ChessBase"]
[SourceQuality "1"]
[TimeControl "40/5400+30:1800+30"]

1. e4 {[%emt 0:00:30]} c6 {[%emt 0:00:05]} 2. d4 {[%emt 0:00:00]} d5 {[%emt 0:00:06]} 3. e5 {[%emt 0:00:00]} c5 {[%emt 0:00:05]} 4. Nf3 {[%emt 0:00:00]} Nc6 {[%emt 0:03:40]} 5. dxc5 {[%emt 0:00:09]} e6 {[%emt 0:01:36]} 6. Be3 {[%emt 0:00:13]} Nge7 {[%emt 0:01:18]} 7. Bd3 {[%emt 0:00:11]} Qc7 {[%emt 0:07:13]} 8. Nc3 {[%emt 0:03:19]} a6 {[%emt 0:03:09]} 9. O-O {[%emt 0:06:36]} Nxe5 {[%emt 0:03:19]} 10. Nxe5 {[%emt 0:00:00]} Qxe5 {[%emt 0:00:04]} 11. Bd4 {[%emt 0:01:58]} Qc7 {[%emt 0:02:22]} 12. Re1 {[%emt 0:01:13]} Bd7 {[%emt 0:08:13]} 13. b4 {[%emt 0:01:40]} f6 {[%emt 0:01:25]} 14. Qh5+ {[%emt 0:05:55]} Kd8 {[%emt 0:05:50]} 15. Qf7 {[%emt 0:05:04]} e5 {[%emt 0:01:25]} 16. Nxd5 {[%emt 0:00:06]} Nxd5 {[%emt 0:01:04]} 17. Qxd5 {[%emt 0:00:05]} Qc6 {[%emt 0:12:50]} 18. Qxc6 {[%emt 0:02:04]} bxc6 {[%emt 0:02:10]} 19. Be3 {[%emt 0:00:06]} a5 {[%emt 0:03:25]} 20. c3 {[%emt 0:02:03]} g5 {[%emt 0:11:26]} 21. a4 {[%emt 0:03:11]} Be7 {[%emt 0:01:25]} 22. b5 {[%emt 0:02:57]} Rc8 {[%emt 0:08:05]} 23. Red1 {[%emt 0:04:31]} Ke8 {[%emt 0:02:09]} 24. Be2 {[%emt 0:02:21]} f5 {[%emt 0:01:41]} 25. Bh5+ {[%emt 0:01:54]} Kd8 {[%emt 0:00:10]} 26. Rd2 {[%emt 0:01:03]} f4 {[%emt 0:13:42]} 27. Rad1 {[%emt 0:00:15]} Rc7 {[%emt 0:00:24]} 28. bxc6 {[%emt 0:00:06]} 1-0

[Event "Reykjavik Open 2022"]
[Site "Reykjavik"]
[Date "2022.04.06"]
[Round "1.2"]
[White "Mahitosh Dey"]
[Black "Gukesh D"]
[Result "0-1"]
[ECO "D02"]
[WhiteElo "2176"]
[BlackElo "2614"]
[Annotator "RC"]
[PlyCount "120"]
[EventDate "2022.04.06"]
[EventCountry "ISL"]
[SourceTitle "playchess.com"]
[Source "ChessBase"]
[SourceQuality "1"]
[TimeControl "40/5400+30:1800+30"]

1. d4 {[%emt 0:00:03]} Nf6 {[%emt 0:01:10]} 2. Nf3 {[%emt 0:00:12]} d5 {[%emt 0:01:05]} 3. c3 {[%emt 0:01:03]} Bf5 {[%emt 0:02:12]} 4. Qb3 {[%emt 0:01:04]} Qc8 {[%emt 0:01:02]} 5. Bf4 {[%emt 0:01:07]} e6 {[%emt 0:00:34]} 6. Nbd2 {[%emt 0:03:08]} c5 {[%emt 0:00:21]} 7. e3 {[%emt 0:03:47]} Nc6 {[%emt 0:00:05]} 8. Nh4 {[%emt 0:05:24]} Be4 {[%emt 0:00:39]} 9. f3 {[%emt 0:00:53]} Bg6 {[%emt 0:01:15]} 10. Nxg6 {[%emt 0:01:07]} hxg6 {[%emt 0:00:06]} 11. h3 {[%emt 0:02:19]} Qd7 {[%emt 0:06:50]} 12. Be2 {[%emt 0:11:41]} Bd6 {[%emt 0:22:32]} 13. Bxd6 {[%emt 0:01:04]} Qxd6 {[%emt 0:00:03]} 14. f4 {[%emt 0:00:35]} c4 {[%emt 0:09:41]} 15. Qc2 {[%emt 0:02:42]} g5 {[%emt 0:00:34]} 16. O-O {[%emt 0:04:29]} gxf4 {[%emt 0:05:23]} 17. e4 {[%emt 0:01:55]} Nxe4 {[%emt 0:05:25]} 18. Nxe4 {[%emt 0:05:15]} dxe4 {[%emt 0:00:05]} 19. Qxe4 {[%emt 0:00:05]} g5 {[%emt 0:00:25]} 20. Bxc4 {[%emt 0:00:28]} O-O-O {[%emt 0:00:14]} 21. a4 {[%emt 0:07:54]} Rh6 {[%emt 0:05:43]} 22. Rad1 {[%emt 0:03:20]} f5 {[%emt 0:00:21]} 23. Qe2 {[%emt 0:03:34]} Kc7 {[%emt 0:21:00]} 24. Bb5 {[%emt 0:01:39]} Ne7 {[%emt 0:03:27]} 25. Qe5 {[%emt 0:02:46]} Qxe5 {[%emt 0:01:10]} 26. dxe5 {[%emt 0:00:06]} Nd5 {[%emt 0:00:46]} 27. Rf2 {[%emt 0:00:06]} a6 {[%emt 0:04:32]} 28. Bc4 {[%emt 0:00:35]} Nb6 {[%emt 0:02:27]} 29. Rxd8 {[%emt 0:00:12]} Kxd8 {[%emt 0:00:01]} 30. Bb3 {[%emt 0:00:14]} Nd7 {[%emt 0:00:50]} 31. Rd2 {[%emt 0:00:12]} Ke7 {[%emt 0:02:40]} 32. Rd6 {[%emt 0:00:14]} Nxe5 {[%emt 0:02:52]} 33. Rb6 {[%emt 0:00:05]} Nd7 {[%emt 0:00:18]} 34. Rxb7 {[%emt 0:00:06]} e5 {[%emt 0:00:04]} 35. a5 {[%emt 0:00:19]} Kd8 {[%emt 0:00:43]} 36. Ra7 {[%emt 0:02:38]} Rd6 {[%emt 0:00:39]} 37. Bc4 {[%emt 0:00:15]} Nc5 {[%emt 0:00:28]} 38. Kf1 {[%emt 0:02:04]} Rd2 {[%emt 0:00:25]} 39. b4 {[%emt 0:00:23]} Ne4 {[%emt 0:00:05]} 40. Rxa6 {[%emt 0:00:00]} Rd1+ {[%emt 0:00:00]} 41. Ke2 {[%emt 0:00:36]} Nxc3+ {[%emt 0:02:37]} 42. Kf2 {[%emt 0:00:06]} Rc1 {[%emt 0:07:27]} 43. Ra8+ {[%emt 0:04:34]} Kc7 {[%emt 0:01:33]} 44. Ba6 {[%emt 0:04:24]} e4 {[%emt 0:00:10]} 45. Rf8 {[%emt 0:00:06]} e3+ {[%emt 0:11:29]} 46. Kf3 {[%emt 0:00:05]} Rc2 {[%emt 0:00:25]} 47. Rxf5 {[%emt 0:00:06]} Rf2+ {[%emt 0:00:06]} 48. Kg4 {[%emt 0:00:19]} Rxg2+ {[%emt 0:00:06]} 49. Kh5 {[%emt 0:00:02]} e2 {[%emt 0:03:15]} 50. Rf7+ {[%emt 0:00:50]} Kd6 {[%emt 0:02:05]} 51. Bxe2 {[%emt 0:00:05]} Nxe2 {[%emt 0:00:04]} 52. a6 {[%emt 0:00:06]} Nd4 {[%emt 0:01:19]} 53. a7 {[%emt 0:00:33]} Ra2 {[%emt 0:00:12]} 54. h4 {[%emt 0:00:29]} Ke6 {[%emt 0:05:13]} 55. Kg6 {[%emt 0:00:03]} Nf3 {[%emt 0:00:39]} 56. Rf6+ {[%emt 0:00:16]} Kd5 {[%emt 0:00:01]} 57. Rf5+ {[%emt 0:00:12]} Ne5+ {[%emt 0:01:35]} 58. Kxg5 {[%emt 0:02:00]} f3 {[%emt 0:00:01]} 59. Kf4 {[%emt 0:01:21]} Kd4 {[%emt 0:00:01]} 60. Rf8 {[%emt 0:00:33]} Ng6+ {[%emt 0:00:12]} 0-1

[Event "Reykjavik Open 2022"]
[Site "Reykjavik"]
[Date "2022.04.06"]
[Round "1.3"]
[White "Niemann, Hans Moke"]
[Black "Johansson, Carl Fredrik"]
[Result "1-0"]
[ECO "B51"]
[WhiteElo "2642"]
[BlackElo "2216"]
[Annotator "RC"]
[PlyCount "95"]
[EventDate "2022.04.06"]
[EventCountry "ISL"]
[SourceTitle "playchess.com"]
[Source "ChessBase"]
[SourceQuality "1"]
[TimeControl "40/5400+30:1800+30"]

1. e4 {[%emt 0:00:05]} c5 {[%emt 0:00:07]} 2. Nf3 {[%emt 0:00:17]} d6 {[%emt 0:00:06]} 3. Bb5+ {[%emt 0:00:28]} Nd7 {[%emt 0:00:37]} 4. O-O {[%emt 0:00:23]} a6 {[%emt 0:00:40]} 5. Bd3 {[%emt 0:00:10]} Ngf6 {[%emt 0:01:37]} 6. Re1 {[%emt 0:02:49]} e5 {[%emt 0:03:10]} 7. c3 {[%emt 0:08:02]} Be7 {[%emt 0:00:59]} 8. a4 {[%emt 0:02:44]} Nf8 {[%emt 0:09:41]} 9. Bf1 {[%emt 0:02:08]} Ng6 {[%emt 0:03:20]} 10. d4 {[%emt 0:04:25]} Bg4 {[%emt 0:05:33]} 11. dxc5 {[%emt 0:01:45]} dxc5 {[%emt 0:14:06]} 12. Qxd8+ {[%emt 0:00:27]} Rxd8 {[%emt 0:00:15]} 13. Nbd2 {[%emt 0:00:08]} O-O {[%emt 0:06:40]} 14. h3 {[%emt 0:00:16]} Bd7 {[%emt 0:04:07]} 15. Nc4 {[%emt 0:07:55]} Bc6 {[%emt 0:02:24]} 16. Bg5 {[%emt 0:00:55]} h6 {[%emt 0:03:18]} 17. Bxf6 {[%emt 0:00:44]} Bxf6 {[%emt 0:01:09]} 18. Na5 {[%emt 0:00:14]} Ne7 {[%emt 0:04:52]} 19. b4 {[%emt 0:03:53]} cxb4 {[%emt 0:02:18]} 20. cxb4 {[%emt 0:00:09]} b5 {[%emt 0:00:17]} 21. Rac1 {[%emt 0:02:53]} Rc8 {[%emt 0:03:28]} 22. Rc5 {[%emt 0:03:14]} Be8 {[%emt 0:06:26]} 23. axb5 {[%emt 0:08:14]} Rxc5 {[%emt 0:02:26]} 24. bxc5 {[%emt 0:00:48]} Bxb5 {[%emt 0:00:07]} 25. Bxb5 {[%emt 0:00:13]} axb5 {[%emt 0:00:00]} 26. Rb1 {[%emt 0:00:16]} Rb8 {[%emt 0:02:04]} 27. Kf1 {[%emt 0:05:02]} b4 {[%emt 0:01:03]} 28. Ke2 {[%emt 0:02:55]} Ra8 {[%emt 0:06:36]} 29. Ra1 {[%emt 0:00:19]} Nc6 {[%emt 0:01:08]} 30. Nb3 {[%emt 0:00:07]} Ra3 {[%emt 0:03:34]} 31. Rxa3 {[%emt 0:11:06]} bxa3 {[%emt 0:00:01]} 32. Ne1 {[%emt 0:00:14]} a2 {[%emt 0:04:38]} 33. Nc2 {[%emt 0:00:09]} Bd8 {[%emt 0:02:04]} 34. Kd3 {[%emt 0:00:59]} Kf8 {[%emt 0:01:16]} 35. Kc4 {[%emt 0:02:15]} Ke8 {[%emt 0:00:50]} 36. Nc1 {[%emt 0:01:39]} Nd4 {[%emt 0:01:57]} 37. Na1 {[%emt 0:00:05]} Kd7 {[%emt 0:01:47]} 38. Nxa2 {[%emt 0:00:06]} Ba5 {[%emt 0:01:00]} 39. Nb3 {[%emt 0:00:28]} Nxb3 {[%emt 0:02:31]} 40. Kxb3 {[%emt 0:00:00]} g6 {[%emt 0:00:00]} 41. Nb4 {[%emt 0:01:02]} h5 {[%emt 0:05:46]} 42. Kc4 {[%emt 0:00:09]} f5 {[%emt 0:01:12]} 43. f3 {[%emt 0:00:08]} h4 {[%emt 0:00:10]} 44. Nd3 {[%emt 0:00:07]} Ke6 {[%emt 0:00:34]} 45. Kb5 {[%emt 0:00:07]} Bd8 {[%emt 0:00:08]} 46. Kc6 {[%emt 0:00:06]} f4 {[%emt 0:00:37]} 47. Kb7 {[%emt 0:00:10]} g5 {[%emt 0:00:17]} 48. Nb2 {[%emt 0:00:13]} 1-0

[Event "Reykjavik Open 2022"]
[Site "Reykjavik"]
[Date "2022.04.06"]
[Round "1.4"]
[White "Villiers, Thomas"]
[Black "Adhiban, B.."]
[Result "0-1"]
[ECO "D02"]
[WhiteElo "2202"]
[BlackElo "2648"]
[Annotator "RC"]
[PlyCount "130"]
[EventDate "2022.04.06"]
[EventCountry "ISL"]
[SourceTitle "playchess.com"]
[Source "ChessBase"]
[SourceQuality "1"]
[TimeControl "40/5400+30:1800+30"]

1. d4 {[%emt 0:00:10]} e6 {[%emt 0:02:01]} 2. Nf3 {[%emt 0:03:51]} c5 {[%emt 0:00:07]} 3. c3 {[%emt 0:01:55]} d5 {[%emt 0:00:16]} 4. Bf4 {[%emt 0:02:52]} Bd6 {[%emt 0:00:11]} 5. Bg3 {[%emt 0:02:43]} Nf6 {[%emt 0:00:48]} 6. e3 {[%emt 0:00:12]} Qc7 {[%emt 0:00:16]} 7. Nbd2 {[%emt 0:00:47]} Nbd7 {[%emt 0:01:48]} 8. Bd3 {[%emt 0:00:38]} O-O {[%emt 0:02:07]} 9. Qe2 {[%emt 0:00:32]} e5 {[%emt 0:01:41]} 10. dxe5 {[%emt 0:00:53]} Nxe5 {[%emt 0:00:09]} 11. Nxe5 {[%emt 0:00:17]} Bxe5 {[%emt 0:00:02]} 12. Nf3 {[%emt 0:02:34]} Bd6 {[%emt 0:00:53]} 13. Bxd6 {[%emt 0:01:40]} Qxd6 {[%emt 0:00:05]} 14. h3 {[%emt 0:00:34]} Re8 {[%emt 0:00:24]} 15. O-O {[%emt 0:02:34]} Be6 {[%emt 0:07:06]} 16. Rfd1 {[%emt 0:01:11]} Rad8 {[%emt 0:00:04]} 17. Qc2 {[%emt 0:06:10]} g6 {[%emt 0:07:39]} 18. Rd2 {[%emt 0:12:00]} Qd7 {[%emt 0:08:29]} 19. Ng5 {[%emt 0:04:58]} Qc7 {[%emt 0:02:58]} 20. Nxe6 {[%emt 0:03:20]} fxe6 {[%emt 0:00:02]} 21. Rad1 {[%emt 0:01:14]} Kg7 {[%emt 0:03:35]} 22. c4 {[%emt 0:06:22]} d4 {[%emt 0:02:41]} 23. exd4 {[%emt 0:02:15]} Rxd4 {[%emt 0:00:02]} 24. Be2 {[%emt 0:01:17]} e5 {[%emt 0:00:14]} 25. Rxd4 {[%emt 0:04:46]} cxd4 {[%emt 0:06:09]} 26. b4 {[%emt 0:01:06]} Re7 {[%emt 0:04:34]} 27. Rd2 {[%emt 0:09:27]} Qb6 {[%emt 0:12:03]} 28. Qb1 {[%emt 0:03:50]} e4 {[%emt 0:00:32]} 29. c5 {[%emt 0:00:13]} Qd8 {[%emt 0:00:09]} 30. Qb2 {[%emt 0:02:27]} d3 {[%emt 0:00:11]} 31. Bf1 {[%emt 0:00:16]} Rd7 {[%emt 0:05:40]} 32. b5 {[%emt 0:00:32]} Qc7 {[%emt 0:06:35]} 33. Qc3 {[%emt 0:04:58]} Rd5 {[%emt 0:02:19]} 34. c6 {[%emt 0:02:48]} Rxb5 {[%emt 0:00:25]} 35. f3 {[%emt 0:00:30]} Qb6+ {[%emt 0:05:11]} 36. Kh2 {[%emt 0:00:38]} Qc7+ {[%emt 0:14:42]} 37. Kg1 {[%emt 0:00:55]} Qb6+ {[%emt 0:03:56]} 38. Kh2 {[%emt 0:00:07]} Rc5 {[%emt 0:00:10]} 39. Qd4 {[%emt 0:01:18]} Qc7+ {[%emt 0:00:26]} 40. Kg1 {[%emt 0:00:00]} Rc2 {[%emt 0:00:00]} 41. Rd1 {[%emt 0:01:56]} exf3 {[%emt 0:06:17]} 42. Rxd3 {[%emt 0:02:42]} fxg2 {[%emt 0:02:30]} 43. Bxg2 {[%emt 0:00:08]} Rc1+ {[%emt 0:00:53]} 44. Kf2 {[%emt 0:00:32]} bxc6 {[%emt 0:00:09]} 45. Rf3 {[%emt 0:01:21]} Rc2+ {[%emt 0:06:25]} 46. Kf1 {[%emt 0:00:43]} Rc1+ {[%emt 0:02:46]} 47. Kf2 {[%emt 0:01:10]} Qb6 {[%emt 0:00:07]} 48. Qxb6 {[%emt 0:00:19]} axb6 {[%emt 0:00:03]} 49. Rb3 {[%emt 0:00:19]} Nd7 {[%emt 0:01:05]} 50. a4 {[%emt 0:00:12]} Kf6 {[%emt 0:00:53]} 51. Ra3 {[%emt 0:01:09]} Rc2+ {[%emt 0:00:35]} 52. Kg3 {[%emt 0:00:11]} Rc5 {[%emt 0:00:07]} 53. Rb3 {[%emt 0:00:12]} Rc4 {[%emt 0:05:23]} 54. Ra3 {[%emt 0:01:06]} h5 {[%emt 0:01:21]} 55. a5 {[%emt 0:00:14]} h4+ {[%emt 0:00:07]} 56. Kf2 {[%emt 0:00:25]} bxa5 {[%emt 0:00:02]} 57. Rxa5 {[%emt 0:00:12]} Ne5 {[%emt 0:00:34]} 58. Ra8 {[%emt 0:00:42]} Rc2+ {[%emt 0:03:29]} 59. Kg1 {[%emt 0:00:10]} Rc3 {[%emt 0:00:16]} 60. Rf8+ {[%emt 0:00:28]} Kg5 {[%emt 0:00:07]} 61. Kh2 {[%emt 0:01:12]} c5 {[%emt 0:00:32]} 62. Rf2 {[%emt 0:00:37]} c4 {[%emt 0:00:13]} 63. Bf1 {[%emt 0:01:30]} Re3 {[%emt 0:00:39]} 64. Rg2+ {[%emt 0:00:00]} Kf4 {[%emt 0:00:07]} 65. Kg1 {[%emt 0:00:45]} Rg3 {[%emt 0:01:29]} 0-1

[Event "Reykjavik Open 2022"]
[Site "Reykjavik"]
[Date "2022.04.06"]
[Round "1.5"]
[White "Sadhwani, Raunak"]
[Black "Povah, Nigel E"]
[Result "1-0"]
[ECO "B31"]
[WhiteElo "2616"]
[BlackElo "2245"]
[Annotator "TA"]
[PlyCount "209"]
[EventDate "2022.04.06"]
[EventCountry "ISL"]
[SourceTitle "playchess.com"]
[Source "ChessBase"]
[SourceQuality "1"]
[TimeControl "40/5400+30:1800+30"]

{[%evp 171,209,0,0,0,0,0,0,0,0,0,0,-814,0,0,0,0,0,0,0,0,0,0,0,0,0,0,0,0,29977,29978,29978,29979,29977,29977,29984,29985,29985,29986,29986,29987]} 1. e4 {[%emt 0:00:05]} c5 {[%emt 0:00:15]} 2. Nf3 {[%emt 0:00:08]} Nc6 {[%emt 0:01:28]} 3. Bb5 {[%emt 0:00:06]} Nf6 {[%emt 0:00:22]} 4. Nc3 {[%emt 0:00:12]} g6 {[%emt 0:04:03]} 5. O-O {[%emt 0:01:31]} Bg7 {[%emt 0:00:11]} 6. e5 {[%emt 0:00:05]} Ng4 {[%emt 0:00:22]} 7. Bxc6 {[%emt 0:00:22]} dxc6 {[%emt 0:00:06]} 8. Re1 {[%emt 0:00:07]} O-O {[%emt 0:00:53]} 9. d3 {[%emt 0:00:07]} Nh6 {[%emt 0:00:56]} 10. Ne4 {[%emt 0:00:51]} b6 {[%emt 0:00:31]} 11. Bf4 {[%emt 0:00:17]} Bg4 {[%emt 0:01:43]} 12. h3 {[%emt 0:01:07]} Bxf3 {[%emt 0:00:32]} 13. Qxf3 {[%emt 0:00:10]} Nf5 {[%emt 0:12:20]} 14. c3 {[%emt 0:01:32]} f6 {[%emt 0:11:02]} 15. Nd2 {[%emt 0:28:16]} Qd5 {[%emt 0:08:01]} 16. Qxd5+ {[%emt 0:02:26]} cxd5 {[%emt 0:00:06]} 17. g4 {[%emt 0:00:29]} Nh6 {[%emt 0:01:18]} 18. e6 {[%emt 0:02:47]} g5 {[%emt 0:09:51]} 19. Bg3 {[%emt 0:00:25]} f5 {[%emt 0:03:13]} 20. f3 {[%emt 0:00:15]} Bf6 {[%emt 0:06:33]} 21. Bf2 {[%emt 0:04:24]} Rac8 {[%emt 0:06:04]} 22. Nf1 {[%emt 0:03:48]} Kg7 {[%emt 0:02:26]} 23. Ng3 {[%emt 0:10:09]} Kg6 {[%emt 0:00:21]} 24. Kg2 {[%emt 0:00:07]} Bh8 {[%emt 0:03:32]} 25. Re2 {[%emt 0:03:50]} f4 {[%emt 0:03:41]} 26. Nf1 {[%emt 0:00:27]} Ng8 {[%emt 0:00:18]} 27. h4 {[%emt 0:04:48]} h6 {[%emt 0:00:47]} 28. Nd2 {[%emt 0:00:29]} Rfd8 {[%emt 0:04:36]} 29. a4 {[%emt 0:07:26]} a5 {[%emt 0:00:28]} 30. Rae1 {[%emt 0:06:41]} Rc6 {[%emt 0:01:13]} 31. Nb1 {[%emt 0:00:35]} Rdd6 {[%emt 0:05:16]} 32. Na3 {[%emt 0:00:42]} Kf6 {[%emt 0:00:27]} 33. Re5 {[%emt 0:02:46]} Kg6 {[%emt 0:02:34]} 34. Rf5 {[%emt 0:02:23]} Bf6 {[%emt 0:03:18]} 35. Nb5 {[%emt 0:03:11]} Rxe6 {[%emt 0:01:58]} 36. h5+ {[%emt 0:02:48]} Kf7 {[%emt 0:00:32]} 37. Rxd5 {[%emt 0:00:07]} Rxe1 {[%emt 0:01:15]} 38. Bxe1 {[%emt 0:00:02]} Ke8 {[%emt 0:01:46]} 39. Bf2 {[%emt 0:00:44]} e6 {[%emt 0:02:21]} 40. Rd6 {[%emt 0:00:00]} Rxd6 {[%emt 0:00:00]} 41. Nxd6+ {[%emt 0:00:13]} Kd7 {[%emt 0:00:38]} 42. Nc4 {[%emt 0:00:09]} Kc6 {[%emt 0:01:26]} 43. Kf1 {[%emt 0:00:08]} Bd8 {[%emt 0:07:32]} 44. Ke2 {[%emt 0:01:56]} Kd5 {[%emt 0:02:55]} 45. Nd2 {[%emt 0:02:03]} Nf6 {[%emt 0:05:19]} 46. Kd1 {[%emt 0:03:37]} e5 {[%emt 0:06:55]} 47. Kc2 {[%emt 0:01:27]} Bc7 {[%emt 0:00:28]} 48. Be1 {[%emt 0:04:14]} Bd8 {[%emt 0:00:53]} 49. Kb3 {[%emt 0:00:13]} Bc7 {[%emt 0:00:57]} 50. Nb1 {[%emt 0:00:53]} e4 {[%emt 0:04:02]} 51. dxe4+ {[%emt 0:04:49]} Nxe4 {[%emt 0:00:34]} 52. c4+ {[%emt 0:08:06]} Kd4 {[%emt 0:00:07]} 53. Kc2 {[%emt 0:00:31]} Nd6 {[%emt 0:04:55]} 54. Bf2+ {[%emt 0:00:33]} Ke5 {[%emt 0:00:13]} 55. Kd3 {[%emt 0:02:51]} Bd8 {[%emt 0:01:17]} 56. Be1 {[%emt 0:04:01]} Ke6 {[%emt 0:00:08]} 57. Bc3 {[%emt 0:02:57]} Nf7 {[%emt 0:01:59]} 58. Na3 {[%emt 0:05:02]} Bf6 {[%emt 0:00:23]} 59. Bxf6 {[%emt 0:01:35]} Kxf6 {[%emt 0:00:02]} 60. Ke4 {[%emt 0:00:04]} Ke6 {[%emt 0:00:07]} 61. Nb5 {[%emt 0:00:29]} Ne5 {[%emt 0:00:49]} 62. Nc7+ {[%emt 0:00:19]} Kd6 {[%emt 0:00:08]} 63. Ne8+ {[%emt 0:00:05]} Ke6 {[%emt 0:00:11]} 64. b3 {[%emt 0:00:26]} Nf7 {[%emt 0:00:44]} 65. Nc7+ {[%emt 0:00:48]} Kd6 {[%emt 0:01:33]} 66. Nd5 {[%emt 0:00:06]} Ke6 {[%emt 0:00:58]} 67. Nxb6 {[%emt 0:00:20]} Nd6+ {[%emt 0:00:06]} 68. Kd3 {[%emt 0:00:04]} Nb7 {[%emt 0:01:22]} 69. Nd5 {[%emt 0:02:05]} Nd6 {[%emt 0:00:12]} 70. Nc7+ {[%emt 0:02:28]} Ke5 {[%emt 0:00:21]} 71. Na6 {[%emt 0:00:11]} Nb7 {[%emt 0:00:16]} 72. Nb8 {[%emt 0:00:13]} Kd6 {[%emt 0:00:59]} 73. Ke4 {[%emt 0:00:20]} Ke6 {[%emt 0:00:38]} 74. Na6 {[%emt 0:01:34]} Nd6+ {[%emt 0:00:10]} 75. Kd3 {[%emt 0:00:09]} Nb7 {[%emt 0:00:01]} 76. Nc7+ {[%emt 0:03:20]} Kd7 {[%emt 0:00:03]} 77. Nb5 {[%emt 0:00:58]} Ke6 {[%emt 0:00:05]} 78. Ke4 {[%emt 0:00:12]} Nd8 {[%emt 0:00:23]} 79. Nc7+ {[%emt 0:00:26]} Kd7 {[%emt 0:00:01]} 80. Nd5 {[%emt 0:02:31]} Ke6 {[%emt 0:00:07]} 81. Nc7+ {[%emt 0:00:04]} Kd7 {[%emt 0:00:04]} 82. Kf5 {[%emt 0:01:00]} Kxc7 {[%emt 0:00:12]} 83. Kg6 {[%emt 0:00:00]} Kd6 {[%emt 0:02:42]} 84. Kxh6 {[%emt 0:00:05]} Nf7+ {[%emt 0:01:41]} 85. Kg7 {[%emt 0:00:10]} Ke6 {[%emt 0:00:16]} 86. h6 {[%emt 0:00:57]} Ke7 {[%emt 0:00:21]} 87. Kg6 {[%emt 0:00:18]} Ke6 {[%emt 0:00:05]} 88. h7 {[%emt 0:00:06]} Nh8+ {[%emt 0:00:11]} 89. Kxg5 {[%emt 0:00:57]} Ke5 {[%emt 0:00:09]} 90. Kh6 {[%emt 0:01:27]} Kf6 {[%emt 0:00:13]} 91. g5+ $2 {[%emt 0:00:04][%mdl 8192]} (91. Kh5 $11) 91... Kf5 $2 {[%emt 0:00:12]} ({Black should try} 91... Kf7 $19 92. Kh5 Kg7) 92. Kg7 $11 {[%emt 0:01:03]} Ng6 {[%emt 0:00:08]} 93. Kh6 {[%emt 0:00:01]} Nh8 {[%emt 0:00:06]} 94. b4 {[%emt 0:01:19]} axb4 {[%emt 0:00:17]} 95. a5 {[%emt 0:00:00]} b3 {[%emt 0:00:10]} 96. a6 {[%emt 0:00:01]} b2 {[%emt 0:00:10]} 97. a7 {[%emt 0:00:04]} b1=Q {[%emt 0:00:06]} (97... Nf7+ $2 98. Kg7 (98. Kh5 $2 {is a self mate.} b1=Q 99. a8=Q Qh1#) 98... b1=Q 99. a8=Q $18) 98. a8=Q {[%emt 0:00:04]} Qb6+ {[%emt 0:02:57]} (98... Nf7+ 99. Kg7 Kxg5 100. Qd5+ Kh4 101. Qxf7 Kg3 102. h8=Q Qb2+ 103. Qf6) 99. Kg7 {[%emt 0:00:01]} Qc7+ $2 {[%emt 0:01:17][%mdl 8192]} (99... Qb2+ $11 100. Kg8 Kxg5 101. Qd8+ (101. Qf8 $2 Ng6 $19) 101... Kh5) 100. Kxh8 {[%emt 0:01:24]} Qe5+ {[%emt 0:00:23]} 101. Kg8 {[%emt 0:00:05]} Qe6+ {[%emt 0:00:15]} 102. Kf8 {[%emt 0:00:10]} Qd6+ {[%emt 0:00:23]} 103. Ke8 {[%emt 0:00:22]} Qg6+ {[%emt 0:01:50]} 104. Kd8 {[%emt 0:00:34]} Qxg5+ {[%emt 0:00:44]} 105. Kc8 {[%emt 0:00:16]} 1-0

[Event "Reykjavik Open 2022"]
[Site "Reykjavik"]
[Date "2022.04.06"]
[Round "1.6"]
[White "Cherniack, Alex"]
[Black "Praggnanandhaa R"]
[Result "0-1"]
[ECO "B68"]
[WhiteElo "2213"]
[BlackElo "2612"]
[Annotator "RC"]
[PlyCount "82"]
[EventDate "2022.04.06"]
[EventCountry "ISL"]
[SourceTitle "playchess.com"]
[Source "ChessBase"]
[SourceQuality "1"]
[TimeControl "40/5400+30:1800+30"]

1. e4 {[%emt 0:00:05]} c5 {[%emt 0:00:30]} 2. Nf3 {[%emt 0:00:05]} Nc6 {[%emt 0:00:04]} 3. d4 {[%emt 0:00:15]} cxd4 {[%emt 0:00:06]} 4. Nxd4 {[%emt 0:00:04]} Nf6 {[%emt 0:00:04]} 5. Nc3 {[%emt 0:00:11]} d6 {[%emt 0:00:03]} 6. Bg5 {[%emt 0:00:23]} e6 {[%emt 0:00:07]} 7. Qd2 {[%emt 0:00:19]} a6 {[%emt 0:00:41]} 8. O-O-O {[%emt 0:01:09]} Be7 {[%emt 0:00:21]} 9. f4 {[%emt 0:03:28]} Bd7 {[%emt 0:00:12]} 10. Nb3 {[%emt 0:02:56]} b5 {[%emt 0:03:31]} 11. Bxf6 {[%emt 0:07:46]} gxf6 {[%emt 0:01:52]} 12. Qe3 {[%emt 0:01:53]} Qc7 {[%emt 0:04:11]} 13. Kb1 {[%emt 0:02:07]} b4 {[%emt 0:08:14]} 14. Ne2 {[%emt 0:01:54]} a5 {[%emt 0:08:11]} 15. Nbd4 {[%emt 0:09:38]} Nxd4 {[%emt 0:04:52]} 16. Nxd4 {[%emt 0:03:41]} Qc5 {[%emt 0:00:14]} 17. Qd3 {[%emt 0:06:31]} a4 {[%emt 0:08:11]} 18. Be2 {[%emt 0:13:13]} O-O {[%emt 0:06:42]} 19. Rc1 {[%emt 0:01:52]} Rfb8 {[%emt 0:06:03]} 20. Rhf1 {[%emt 0:01:53]} Kh8 {[%emt 0:09:07]} 21. Rf3 {[%emt 0:00:53]} Rg8 {[%emt 0:01:49]} 22. Bf1 {[%emt 0:02:48]} Rac8 {[%emt 0:01:54]} 23. Qd2 {[%emt 0:00:57]} Bd8 {[%emt 0:09:02]} 24. Rd3 {[%emt 0:03:49]} Bb6 {[%emt 0:03:27]} 25. Ne2 {[%emt 0:03:51]} a3 {[%emt 0:05:58]} 26. b3 {[%emt 0:01:51]} Bb5 {[%emt 0:00:19]} 27. c4 {[%emt 0:08:45]} bxc3 {[%emt 0:00:20]} 28. Rdxc3 {[%emt 0:08:19]} Qb4 {[%emt 0:00:09]} 29. Ng3 {[%emt 0:03:09]} Ba5 {[%emt 0:02:48]} 30. Bxb5 {[%emt 0:02:22]} Rxc3 {[%emt 0:00:10]} 31. Rxc3 {[%emt 0:00:20]} Qxc3 {[%emt 0:00:09]} 32. Qxc3 {[%emt 0:00:04]} Bxc3 {[%emt 0:00:04]} 33. Bf1 {[%emt 0:01:40]} Bd2 {[%emt 0:01:03]} 34. Kc2 {[%emt 0:01:20]} Bxf4 {[%emt 0:00:07]} 35. Ne2 {[%emt 0:01:06]} Rc8+ {[%emt 0:00:20]} 36. Kd3 {[%emt 0:00:25]} Be5 {[%emt 0:00:07]} 37. b4 {[%emt 0:00:44]} Kg7 {[%emt 0:00:19]} 38. Nd4 {[%emt 0:02:58]} Rc1 {[%emt 0:01:08]} 39. Be2 {[%emt 0:00:07]} Ra1 {[%emt 0:00:15]} 40. Nc2 {[%emt 0:00:00]} Rxa2 {[%emt 0:00:00]} 41. b5 {[%emt 0:03:23]} Rxc2 {[%emt 0:00:22]} 0-1